fUST/lending_fUST_20260114
["ID","MTS","AMOUNT","RATE_DAILY","PERIOD"]
[401868879,1768391448816,-2000.0,0.00015342,2]
[401868881,1768391448825,-749.49335299,0.00015342,2]
[401868883,1768391448834,-2000.0,0.00015342,2]
[401868885,1768391448843,-655.35549971,0.00015342,2]
[401868887,1768391448853,-735.30085754,0.00015342,2]
[401868889,1768391448862,-1873.84265648,0.00015342,2]
[401868891,1768391448871,-2000.0,0.00015342,2]
[401868893,1768391448881,-2500.0,0.00015464,2]
[401868895,1768391448893,-2500.0,0.00015464,2]
[401868897,1768391448902,-2500.0,0.00015464,2]
[401868899,1768391448912,-2500.0,0.00015464,2]
[401868901,1768391448921,-2500.0,0.00015464,2]
[401868903,1768391448930,-505.48440654,0.00015464,2]
[401868905,1768391448940,-2500.0,0.00015464,2]
[401868907,1768391448949,-2500.0,0.00015464,2]
[401868909,1768391448957,-2500.0,0.00015464,2]
[401868911,1768391448966,-2500.0,0.00015464,2]
[401868913,1768391448976,-2500.0,0.00015464,2]
[401868916,1768391448986,-2500.0,0.00015464,2]
[401868917,1768391448995,-348.0,0.00015631,2]
[401868919,1768391449005,-1613.0,0.00015631,2]
[401868921,1768391449014,-1043.37862568,0.00015806,2]
[401868923,1768391449023,-559.4878042,0.0001589,2]
[401868925,1768391449032,-2500.0,0.0001589,2]
[401868928,1768391449041,-1711.66599686,0.0001589,2]
[401868930,1768391449051,-2500.0,0.0001589,2]
[401868932,1768391449060,-2500.0,0.0001589,2]
[401868934,1768391449071,-2500.0,0.0001589,2]
[401868936,1768391449080,-2500.0,0.0001589,2]
[401868938,1768391449090,-2500.0,0.0001589,2]
[401868940,1768391449098,-3000.0,0.00016012,2]
[401868942,1768391449109,-3000.0,0.00016012,2]
[401868944,1768391449117,-685.37019291,0.00016012,2]
[401868946,1768391449127,-3000.0,0.00016012,2]
[401868948,1768391449136,-3000.0,0.00016012,2]
[401868950,1768391449145,-1671.14126243,0.00016012,2]
[401868952,1768391449155,-3000.0,0.00016012,2]
[401868954,1768391449164,-3000.0,0.00016012,2]
[401868956,1768391449173,-3000.0,0.00016012,2]
[401868958,1768391449182,-3000.0,0.00016012,2]
[401868960,1768391449191,-3000.0,0.00016012,2]
[401868962,1768391449200,-1000.0,0.0001611,2]
[401868964,1768391449209,-492.0,0.0001611,2]
[401868966,1768391449219,-8861.396101,0.0001611,7]
[401868968,1768391449228,-1600.0,0.00016164,2]
[401868970,1768391449237,-63810.893436,0.00016164,7]
[401868972,1768391449246,-2000.0,0.00016329,7]
[401868974,1768391449255,-500.0,0.00016438,2]
[401868976,1768391449264,-500.0,0.00016438,2]
[401868978,1768391449273,-500.0,0.00016438,2]
[401868980,1768391449282,-500.0,0.00016438,2]
[401868981,1768391449291,-500.0,0.00016438,2]
[401868984,1768391449300,-160.18817304,0.00016438,2]
[401868986,1768391449309,-500.0,0.00016438,2]
[401868988,1768391449319,-595.30780858,0.00016438,2]
[401868990,1768391449328,-200.0,0.00016438,2]
[401868992,1768391449337,-164.26686219,0.00016438,2]
[401868994,1768391449347,-2544.67516775,0.00016438,2]
[401868996,1768391449356,-3000.0,0.00016438,2]
[401868998,1768391449365,-3000.0,0.00016438,2]
[401869000,1768391449375,-3000.0,0.00016438,2]
[401869002,1768391449384,-3000.0,0.00016438,2]
[401869004,1768391449393,-2819.68437302,0.00016438,2]
[401869006,1768391449402,-260.29560408,0.00016438,2]
[401869008,1768391449411,-159527.233588,0.00016438,7]
[401869010,1768391449420,-184.29,0.0001644,2]
[401869012,1768391449428,-184.29,0.0001644,2]
[401869014,1768391449437,-184.29,0.0001644,2]
[401869016,1768391449446,-184.29,0.0001644,2]
[401869018,1768391449455,-200.0,0.00016473,2]
[401869020,1768391449464,-22153.490254,0.00016473,7]
[401869022,1768391449473,-12705.37423421,0.00016523,2]
[401869024,1768391449483,-3500.0,0.0001656,2]
[401869026,1768391449493,-3500.0,0.0001656,2]
[401869027,1768391449502,-3500.0,0.0001656,2]
[401869030,1768391449511,-3500.0,0.0001656,2]
[401869032,1768391449521,-3500.0,0.0001656,2]
[401869033,1768391449531,-3500.0,0.0001656,2]
[401869035,1768391449540,-416.13825137,0.0001656,2]
[401869038,1768391449550,-3500.0,0.0001656,2]
[401869040,1768391449559,-3500.0,0.0001656,2]
[401869041,1768391449568,-270.0,0.00016986,2]
[401869043,1768391449577,-3587.94374426,0.00016986,2]
[401869045,1768391449587,-3500.0,0.00016986,2]
[401869047,1768391449596,-3500.0,0.00016986,2]
[401869049,1768391449606,-3500.0,0.00016986,2]
[401869052,1768391449616,-1077.0,0.00017018,2]
[401869054,1768391449626,-4000.0,0.00017108,2]
[401869056,1768391449635,-1692.29139729,0.00017108,2]
[401869058,1768391449644,-4000.0,0.00017108,2]
[401869060,1768391449654,-27997.296214,0.00017108,7]
[401869062,1768391449663,-4000.0,0.00017108,2]
[401869064,1768391449672,-4000.0,0.00017108,2]
[401869065,1768391449681,-3392.75982988,0.00017108,2]
[401869067,1768391449690,-4000.0,0.00017108,2]
[401869069,1768391449700,-4000.0,0.00017108,2]
[401869071,1768391449710,-2258.0,0.00017195,2]
[401869073,1768391449719,-2400.0,0.0001726,2]
[401869076,1768391449728,-160.0,0.00017381,2]
[401869077,1768391449738,-1041.66666667,0.00017381,2]
[401869079,1768391449747,-5000.0,0.00017412,2]
[401869081,1768391449756,-69993.240534,0.00017412,7]
[401869084,1768391449765,-174.48080933,0.00017534,2]
[401869086,1768391449775,-400.0,0.00017534,2]
[401869088,1768391449784,-4000.0,0.00017534,2]
[401869090,1768391449793,-4000.0,0.00017534,2]
[401869092,1768391449802,-4000.0,0.00017534,2]
[401869094,1768391449813,-2000.0,0.00017644,7]
[401869096,1768391449823,-4500.0,0.00017656,2]
[401869098,1768391449831,-3199.34641428,0.00017656,2]
[401869100,1768391449840,-4500.0,0.00017656,2]
[401869102,1768391449850,-4500.0,0.00017656,2]
[401869103,1768391449860,-4500.0,0.00017656,2]
[401869105,1768391449869,-4500.0,0.00017656,2]
[401869107,1768391449879,-1000.0,0.00017721,2]
[401869110,1768391449888,-791.0,0.00017721,2]
[401869128,1768391449898,-1165.33197154,0.00017806,2]
[401869131,1768391450068,-400.30202268,0.00017842,2]
[401869133,1768391450078,-4500.0,0.00018082,2]
[401869135,1768391450087,-4500.0,0.00018082,2]
[401869137,1768391450095,-4500.0,0.00018082,2]
[401869139,1768391450104,-4582.180087,0.00018204,7]
[401869141,1768391450113,-1417.48910491,0.00018204,2]
[401869143,1768391450121,-5000.0,0.00018204,2]
[401869145,1768391450130,-5000.0,0.00018204,2]
[401869147,1768391450139,-5000.0,0.00018204,2]
[401869149,1768391450148,-5000.0,0.00018204,2]
[401869151,1768391450157,-3200.0,0.00018356,2]
[401869153,1768391450166,-1077.0,0.00018425,2]
[401869155,1768391450176,-12705.37423421,0.00018499,2]
[401869157,1768391450184,-163.33303318,0.00018521,2]
[401869159,1768391450193,-3692.248375,0.00018527,7]
[401869161,1768391450202,-26587.872265,0.00018589,7]
[401869163,1768391450211,-600.0,0.0001863,2]
[401869165,1768391450220,-5000.0,0.0001863,2]
[401869167,1768391450228,-5000.0,0.0001863,2]
[401869169,1768391450238,-5000.0,0.0001863,2]
[401869171,1768391450247,-180.3,0.00018694,2]
[401869172,1768391450255,-4088.14205975,0.00018752,2]
[401869175,1768391450266,-5500.0,0.00018752,2]
[401869176,1768391450275,-5500.0,0.00018752,2]
[401869178,1768391450284,-5500.0,0.00018752,2]
[401869180,1768391450293,-5000.0,0.00018863,2]
[401869182,1768391450301,-303.10001603,0.000189,2]
[401869184,1768391450310,-303.10001603,0.000189,2]
[401869186,1768391450319,-3162.0,0.00018914,2]
[401869188,1768391450328,-2000.0,0.00018959,7]
[401869190,1768391450336,-303.10001603,0.00019089,2]
[401869192,1768391450345,-303.10001603,0.00019089,2]
[401869194,1768391450354,-507.1352,0.00019178,2]
[401869196,1768391450363,-200.0,0.00019178,2]
[401869198,1768391450372,-507.1352,0.00019178,2]
[401869200,1768391450380,-507.1352,0.00019178,2]
[401869202,1768391450389,-507.1352,0.00019178,2]
[401869204,1768391450400,-507.1352,0.00019178,2]
[401869206,1768391450409,-507.1352,0.00019178,2]
[401869208,1768391450418,-507.1352,0.00019178,2]
[401869211,1768391450427,-5500.0,0.00019178,2]
[401869213,1768391450436,-5500.0,0.00019178,2]
[401869215,1768391450444,-5500.0,0.00019178,2]
[401869217,1768391450454,-40340.44,0.000192,2]
[401869219,1768391450463,-316.42,0.000192,2]
[401869221,1768391450472,-316.46,0.000192,2]
[401869222,1768391450480,-5432.92,0.000192,2]
[401869225,1768391450490,-167.77,0.000192,2]
[401869226,1768391450499,-303.10001603,0.00019278,2]
[401869228,1768391450508,-303.10001603,0.00019278,2]
[401869231,1768391450517,-6000.0,0.000193,2]
[401869233,1768391450527,-6000.0,0.000193,2]
[401869235,1768391450536,-3540.44472477,0.000193,2]
[401869237,1768391450546,-307.61092211,0.00019452,2]
[401869239,1768391450555,-303.10001603,0.00019467,2]
[401869241,1768391450563,-303.10001603,0.00019467,2]
[401869243,1768391450573,-1000.0,0.00019493,2]
[401869244,1768391450582,-1000.0,0.00019493,2]
[401869247,1768391450591,-303.10001603,0.00019656,2]
[401869249,1768391450600,-303.10001603,0.00019656,2]
[401869251,1768391450609,-11665.540089,0.00019674,7]
[401869252,1768391450619,-800.0,0.00019726,2]
[401869254,1768391450628,-250.0,0.00019726,2]
[401869256,1768391450637,-6000.0,0.00019726,2]
[401869258,1768391450646,-6000.0,0.00019726,2]
[401869260,1768391450655,-6000.0,0.00019726,2]
[401869262,1768391450664,-250.0,0.00019726,2]
[401869265,1768391450674,-180.10986702,0.0001973,2]
[401869266,1768391450684,-168.3888056,0.00019774,2]
[401869268,1768391450693,-461.67526834,0.00019774,2]
[401869270,1768391450704,-250.0,0.00019774,2]
[401869272,1768391450712,-168.3888056,0.00019774,2]
[401869274,1768391450722,-300.73,0.00019774,2]
[401869276,1768391450731,-174.61919141,0.00019774,2]
[401869278,1768391450740,-181.08010149,0.00019774,2]
[401869280,1768391450749,-187.78006525,0.00019774,2]
[401869282,1768391450758,-194.72792766,0.00019774,2]
[401869284,1768391450767,-201.93286099,0.00019774,2]
[401869286,1768391450776,-160.0,0.00019774,2]
[401869288,1768391450785,-209.40437684,0.00019774,2]
[401869290,1768391450795,-217.15233878,0.00019774,2]
[401869292,1768391450805,-30000.0,0.00019774,2]
[401869294,1768391450817,-225.18697532,0.00019774,2]
[401869296,1768391450827,-233.51889341,0.00019774,2]
[401869298,1768391450835,-160.0,0.00019774,2]
[401869300,1768391450844,-242.15909246,0.00019774,2]
[401869302,1768391450854,-164.08273023,0.00019774,2]
[401869304,1768391450863,-251.11897888,0.00019774,2]
[401869306,1768391450872,-260.4103811,0.00019774,2]
[401869308,1768391450883,-270.0455652,0.00019774,2]
[401869310,1768391450892,-500.0,0.00019774,2]
[401869312,1768391450901,-280.03725112,0.00019774,2]
[401869314,1768391450910,-500.0,0.00019774,2]
[401869316,1768391450918,-290.39862941,0.00019774,2]
[401869318,1768391450927,-500.0,0.00019774,2]
[401869320,1768391450936,-301.1433787,0.00019774,2]
[401869322,1768391450946,-2230.315306,0.00019774,2]
[401869324,1768391450955,-500.0,0.00019774,2]
[401869326,1768391450965,-500.0,0.00019774,2]
[401869328,1768391450974,-500.0,0.00019774,2]
[401869330,1768391450983,-500.0,0.00019774,2]
[401869332,1768391450993,-500.0,0.00019774,2]
[401869334,1768391451002,-500.0,0.00019774,2]
[401869336,1768391451011,-500.0,0.00019774,2]
[401869338,1768391451019,-500.0,0.00019774,2]
[401869340,1768391451028,-500.0,0.00019774,2]
[401869342,1768391451037,-500.0,0.00019774,2]
[401869344,1768391451047,-500.0,0.00019774,2]
[401869345,1768391451058,-500.0,0.00019774,2]
[401869348,1768391451068,-500.0,0.00019774,2]
[401869349,1768391451079,-500.0,0.00019774,2]
[401869351,1768391451088,-1287.2853174,0.00019806,2]
[401869353,1768391451098,-1077.0,0.00019832,2]
[401869356,1768391451107,-454.65002405,0.00019845,4]
[401869358,1768391451116,-454.65002405,0.00019845,4]
[401869360,1768391451126,-6500.0,0.00019848,2]
[401869361,1768391451135,-6500.0,0.00019848,2]
[401869364,1768391451144,-160.35823449,0.00019903,2]
[401869366,1768391451154,-9661.0,0.0002,2]
[401869368,1768391451163,-151.55000802,0.0002,2]
[401869370,1768391451173,-300.0,0.0002,2]
[401869372,1768391451183,-507.1352,0.0002,4]
[401869374,1768391451192,-507.1352,0.0002,4]
[401869376,1768391451201,-507.1352,0.0002,4]
[401869378,1768391451210,-507.1352,0.0002,4]
[401869380,1768391451219,-507.1352,0.0002,4]
[401869381,1768391451228,-507.1352,0.0002,4]
[401869384,1768391451238,-507.1352,0.0002,4]
[401869386,1768391451247,-500.0,0.0002,2]
[401869388,1768391451256,-500.0,0.0002,2]
[401869390,1768391451265,-500.0,0.0002,2]
[401869392,1768391451274,-422.39783036,0.00020022,2]
[401869393,1768391451284,-1689.59132142,0.00020022,2]
[401869395,1768391451293,-3801.5804732,0.00020022,2]
[401869398,1768391451302,-6758.3652857,0.00020022,2]
[401869400,1768391451312,-454.65002405,0.00020034,4]
[401869402,1768391451321,-454.65002405,0.00020034,4]
[401869403,1768391451330,-455.59513863,0.00020223,4]
[401869405,1768391451339,-454.65002405,0.00020223,4]
[401869407,1768391451347,-150.23957802,0.00020232,2]
[401869409,1768391451357,-200.91058964,0.00020274,2]
[401869412,1768391451367,-5902.72600724,0.00020274,2]
[401869413,1768391451376,-6500.0,0.00020274,2]
[401869415,1768391451386,-5446.58201638,0.00020274,2]
[401869417,1768391451395,-350.0,0.00020274,2]
[401869419,1768391451404,-2000.0,0.00020274,7]
[401869421,1768391451413,-478.75725327,0.00020322,2]
[401869423,1768391451423,-174.61919141,0.00020322,2]
[401869426,1768391451432,-311.85701,0.00020322,2]
[401869427,1768391451442,-31110.0,0.00020322,2]
[401869429,1768391451451,-2312.83697232,0.00020322,2]
[401869432,1768391451461,-10559.9457589,0.00020327,2]
[401869434,1768391451471,-2573.24025849,0.00020396,2]
[401869436,1768391451480,-7000.0,0.00020396,2]
[401869438,1768391451489,-507.1352,0.00020411,5]
[401869440,1768391451498,-507.1352,0.00020411,5]
[401869442,1768391451508,-507.1352,0.00020411,5]
[401869444,1768391451517,-507.1352,0.00020411,5]
[401869446,1768391451526,-507.1352,0.00020411,5]
[401869447,1768391451535,-507.1352,0.00020411,5]
[401869449,1768391451544,-506.6495,0.00020411,5]
[401869451,1768391451553,-454.65002405,0.00020412,4]
[401869453,1768391451562,-12705.37423421,0.00020476,2]
[401869455,1768391451572,-294.66,0.00020545,2]
[401869457,1768391451581,-40340.44,0.000206,2]
[401869459,1768391451590,-167.77,0.000206,2]
[401869461,1768391451599,-454.65002405,0.00020601,4]
[401869463,1768391451608,-547.65599246,0.00020641,2]
[401869465,1768391451618,-985.78078643,0.00020641,2]
[401869467,1768391451627,-1752.49917587,0.00020641,2]
[401869469,1768391451643,-2738.27996229,0.00020641,2]
[401869471,1768391451652,-3943.1231457,0.00020641,2]
[401869473,1768391451661,-5367.0287261,0.00020641,2]
[401869475,1768391451670,-7009.99670347,0.00020641,2]
[401869477,1768391451679,-8872.02707783,0.00020641,2]
[401869479,1768391451688,-10953.11984918,0.00020641,2]
[401869481,1768391451697,-13253.2750175,0.00020641,2]
[401869483,1768391451706,-316.46,0.000207,2]
[401869485,1768391451716,-316.42,0.000207,2]
[401869487,1768391451726,-5432.92,0.000207,2]
[401869489,1768391451734,-4427.0,0.00020805,2]
[401869491,1768391451744,-1000.0,0.00020822,2]
[401869493,1768391451754,-7000.0,0.00020822,2]
[401869495,1768391451763,-450.0,0.00020822,2]
[401869497,1768391451773,-181.08010149,0.0002087,2]
[401869499,1768391451782,-496.47127164,0.0002087,2]
[401869501,1768391451792,-323.39571937,0.0002087,2]
[401869503,1768391451801,-32261.07,0.0002087,2]
[401869505,1768391451814,-2398.4119403,0.0002087,2]
[401869507,1768391451823,-3683.87260271,0.00020944,2]
[401869509,1768391451832,-1077.0,0.00021239,2]
[401869511,1768391451841,-7500.0,0.0002137,2]
[401869513,1768391451850,-550.0,0.0002137,2]
[401869515,1768391451859,-187.78006525,0.00021418,2]
[401869516,1768391451868,-514.84070869,0.00021418,2]
[401869518,1768391451876,-335.36136099,0.00021418,2]
[401869520,1768391451886,-2487.15318209,0.00021418,2]
[401869522,1768391451895,-1000.0,0.00021443,10]
[401869524,1768391451904,-1000.0,0.00021443,10]
[401869526,1768391451913,-579.0,0.00021443,10]
[401869528,1768391451922,-180.3,0.00021497,2]
[401869530,1768391451931,-2000.0,0.00021589,7]
[401869532,1768391451940,-1409.23866326,0.00021806,2]
[401869534,1768391451948,-167.77,0.000219,2]
[401869536,1768391451958,-1200.0,0.00021918,2]
[401869538,1768391451967,-8000.0,0.00021918,2]
[401869540,1768391451977,-650.0,0.00021918,2]
[401869542,1768391451986,-194.72792766,0.00021966,2]
[401869544,1768391451996,-533.88981491,0.00021966,2]
[401869545,1768391452005,-347.76973134,0.00021966,2]
[401869547,1768391452016,-2579.17784983,0.00021966,2]
[401869549,1768391452025,-2222.24,0.00022,7]
[401869551,1768391452034,-12705.37423421,0.00022452,2]
[401869553,1768391452044,-300.0,0.00022466,2]
[401869555,1768391452053,-200.0,0.00022466,2]
[401869557,1768391452062,-2364.52541442,0.00022466,2]
[401869559,1768391452071,-750.0,0.00022466,2]
[401869561,1768391452081,-316.46,0.000225,7]
[401869563,1768391452090,-316.42,0.000225,7]
[401869565,1768391452099,-5432.92,0.000225,14]
[401869567,1768391452108,-201.93286099,0.00022514,2]
[401869569,1768391452118,-553.64373807,0.00022514,2]
[401869571,1768391452127,-360.6372114,0.00022514,2]
[401869573,1768391452136,-2674.60743027,0.00022514,2]
[401869575,1768391452145,-40340.44,0.000226,2]
[401869577,1768391452154,-392.03531054,0.00022635,2]
[401869579,1768391452163,-522.71374739,0.00022635,2]
[401869581,1768391452173,-261.3568737,0.00022635,2]
[401869583,1768391452182,-1077.0,0.00022646,2]
[401869585,1768391452191,-6198.0,0.00022886,2]
[401869587,1768391452200,-2000.0,0.00022904,7]
[401869589,1768391452210,-1400.0,0.00023014,2]
[401869590,1768391452219,-450.0,0.00023014,2]
[401869592,1768391452228,-850.0,0.00023014,2]
[401869594,1768391452237,-250.0,0.00023014,2]
[401869596,1768391452246,-209.40437684,0.00023062,2]
[401869598,1768391452255,-574.12855637,0.00023062,2]
[401869600,1768391452265,-373.98078822,0.00023062,2]
[401869602,1768391452274,-2773.56790519,0.00023062,2]
[401869604,1768391452283,-1000.0,0.00023143,2]
[401869606,1768391452291,-182.95072115,0.0002315,2]
[401869608,1768391452300,-800.0,0.00023198,2]
[401869610,1768391452309,-1700.0,0.00023216,2]
[401869612,1768391452318,-1700.0,0.00023277,2]
[401869614,1768391452327,-1700.0,0.00023314,2]
[401869615,1768391452336,-800.0,0.00023391,2]
[401869617,1768391452344,-500.0,0.00023428,2]
[401869619,1768391452355,-800.0,0.00023437,2]
[401869621,1768391452364,-500.0,0.00023438,2]
[401869623,1768391452374,-330.0,0.00023501,2]
[401869625,1768391452383,-1700.0,0.00023519,2]
[401869627,1768391452392,-800.0,0.0002352,2]
[401869629,1768391452402,-600.0,0.00023562,2]
[401869631,1768391452411,-950.0,0.00023562,2]
[401869633,1768391452420,-210.92385342,0.00023562,2]
[401869635,1768391452429,-500.0,0.0002358,2]
[401869637,1768391452437,-1000.0,0.00023587,10]
[401869639,1768391452447,-1000.0,0.00023587,10]
[401869641,1768391452456,-1000.0,0.00023587,10]
[401869643,1768391452465,-217.15233878,0.0002361,2]
[401869645,1768391452474,-595.37131296,0.0002361,2]
[401869647,1768391452483,-258.85518867,0.0002361,2]
[401869648,1768391452492,-2876.18991768,0.0002361,2]
[401869650,1768391452501,-800.0,0.00023729,2]
[401869652,1768391452510,-1700.0,0.00023736,2]
[401869654,1768391452519,-1700.0,0.00023748,2]
[401869656,1768391452528,-500.0,0.00023792,2]
[401869658,1768391452537,-1531.19200912,0.00023806,2]
[401869660,1768391452546,-1700.0,0.00023811,2]
[401869662,1768391452554,-1700.0,0.00023844,2]
[401869664,1768391452563,-1000.0,0.00023933,2]
[401869666,1768391452573,-1000.0,0.00023958,2]
[401869668,1768391452582,-1000.0,0.00023997,2]
[401869670,1768391452591,-1041.66666667,0.00024,7]
[401869672,1768391452602,-1077.0,0.00024053,2]
[401869674,1768391452612,-800.0,0.00024075,2]
[401869676,1768391452621,-1601.4141805,0.0002411,2]
[401869678,1768391452631,-750.0,0.0002411,2]
[401869680,1768391452640,-1050.0,0.0002411,2]
[401869682,1768391452649,-225.18697532,0.00024158,2]
[401869684,1768391452658,-617.40005154,0.00024158,2]
[401869686,1768391452667,-2982.60894464,0.00024158,2]
[401869688,1768391452675,-2215.349025,0.00024165,30]
[401869689,1768391452685,-500.0,0.00024205,2]
[401869691,1768391452694,-2000.0,0.00024219,7]
[401869693,1768391452704,-671.695781,0.00024228,2]
[401869695,1768391452714,-671.695781,0.00024228,2]
[401869697,1768391452724,-671.695781,0.00024228,2]
[401869699,1768391452733,-671.695781,0.00024228,2]
[401869701,1768391452743,-275.55471384,0.00024228,2]
[401869703,1768391452752,-151.0,0.00024228,2]
[401869705,1768391452760,-151.0,0.00024228,2]
[401869707,1768391452769,-151.0,0.00024228,2]
[401869709,1768391452778,-151.0,0.00024228,2]
[401869711,1768391452787,-151.0,0.00024228,2]
[401869729,1768391452954,-230.012904,0.00024228,2]
[401869731,1768391452964,-151.0,0.00024228,2]
[401869733,1768391452973,-174.038823,0.00024228,2]
[401869735,1768391452983,-174.038823,0.00024228,2]
[401869737,1768391452992,-174.038823,0.00024228,2]
[401869739,1768391453000,-174.038823,0.00024228,2]
[401869741,1768391453010,-406.316369,0.00024228,2]
[401869743,1768391453019,-406.316369,0.00024228,2]
[401869745,1768391453028,-151.3487,0.00024228,2]
[401869747,1768391453037,-216.013567,0.00024228,2]
[401869748,1768391453046,-406.316369,0.00024228,2]
[401869750,1768391453055,-151.3487,0.00024228,2]
[401869752,1768391453065,-216.013567,0.00024228,2]
[401869754,1768391453074,-406.316369,0.00024228,2]
[401869756,1768391453083,-151.3487,0.00024228,2]
[401869758,1768391453092,-216.013567,0.00024228,2]
[401869760,1768391453101,-151.3487,0.00024228,2]
[401869762,1768391453110,-216.013567,0.00024228,2]
[401869764,1768391453120,-151.0,0.00024228,2]
[401869766,1768391453130,-170.441606,0.00024228,2]
[401869768,1768391453139,-15952.723359,0.00024247,30]
[401869770,1768391453148,-2222.24,0.000243,7]
[401869772,1768391453157,-12705.37423421,0.00024429,2]
[401869774,1768391453167,-1700.0,0.00024435,2]
[401869776,1768391453176,-150.25,0.00024467,2]
[401869778,1768391453185,-500.0,0.00024477,2]
[401869780,1768391453194,-4385.0,0.00024498,2]
[401869782,1768391453204,-2148.0,0.00024571,7]
[401869784,1768391453213,-167.77,0.000246,7]
[401869786,1768391453222,-4383.0,0.00024622,2]
[401869788,1768391453231,-900.0,0.00024658,2]
[401869790,1768391453241,-1150.0,0.00024658,2]
[401869792,1768391453250,-200.0,0.00024658,2]
[401869793,1768391453259,-151.0,0.00024658,7]
[401869795,1768391453268,-1838.09205,0.00024658,7]
[401869797,1768391453277,-1838.09205,0.00024658,7]
[401869799,1768391453287,-151.0,0.00024658,7]
[401869801,1768391453296,-151.0,0.00024658,7]
[401869803,1768391453305,-153.839404,0.00024658,7]
[401869805,1768391453314,-151.0,0.00024658,7]
[401869807,1768391453323,-151.0,0.00024658,7]
[401869809,1768391453332,-272.028283,0.00024658,7]
[401869811,1768391453340,-500.0,0.00024658,2]
[401869813,1768391453349,-151.0,0.00024658,7]
[401869815,1768391453359,-151.0,0.00024658,2]
[401869817,1768391453368,-151.0,0.00024658,2]
[401869819,1768391453378,-1700.0,0.00024695,2]
[401869821,1768391453387,-151.0,0.00024695,7]
[401869823,1768391453397,-151.0,0.00024695,7]
[401869825,1768391453407,-151.0,0.00024695,7]
[401869827,1768391453416,-162.301205,0.00024695,7]
[401869829,1768391453426,-151.0,0.00024695,7]
[401869831,1768391453434,-244.488138,0.00024695,7]
[401869833,1768391453444,-244.488138,0.00024695,7]
[401869834,1768391453453,-244.488138,0.00024695,7]
[401869836,1768391453462,-244.488138,0.00024695,7]
[401869838,1768391453472,-151.0,0.00024695,7]
[401869840,1768391453481,-151.0,0.00024695,7]
[401869842,1768391453491,-151.0,0.00024695,7]
[401869844,1768391453504,-151.0,0.00024695,7]
[401869846,1768391453513,-151.0,0.00024695,7]
[401869848,1768391453523,-151.0,0.00024695,7]
[401869850,1768391453533,-151.0,0.00024695,7]
[401869852,1768391453542,-240.755518,0.00024695,7]
[401869854,1768391453552,-237.361203,0.00024695,7]
[401869856,1768391453561,-237.361203,0.00024695,7]
[401869858,1768391453571,-237.361203,0.00024695,7]
[401869860,1768391453581,-237.361203,0.00024695,7]
[401869862,1768391453590,-151.0,0.00024695,7]
[401869864,1768391453600,-9254.2242698,0.000247,3]
[401869866,1768391453609,-233.51889341,0.00024706,2]
[401869868,1768391453619,-640.24385345,0.00024706,2]
[401869870,1768391453629,-3092.96547559,0.00024706,2]
[401869872,1768391453638,-2148.0,0.00024708,7]
[401869874,1768391453647,-1700.0,0.00024716,2]
[401869876,1768391453657,-1000.0,0.00024727,2]
[401869878,1768391453667,-4385.0,0.0002476,7]
[401869880,1768391453676,-2148.0,0.00024767,2]
[401869882,1768391453685,-500.0,0.00024795,2]
[401869884,1768391453694,-316.46,0.000248,7]
[401869885,1768391453703,-316.42,0.000248,7]
[401869887,1768391453713,-5432.92,0.000248,14]
[401869889,1768391453723,-800.0,0.00024812,2]
[401869891,1768391453733,-1700.0,0.00024894,2]
[401869893,1768391453742,-40340.44,0.000249,2]
[401869895,1768391453751,-151.0,0.000249,7]
[401869897,1768391453761,-163.463878,0.000249,7]
[401869899,1768391453770,-151.0,0.000249,7]